bitfinex/quotes_SOLUSD_20220307
["timestamp","ask_amount","ask_price","bid_price","bid_amount"]
[1646669364888,17.5148,85.7,85.595,106.09581307]
[1646669365087,17.5148,85.7,85.596,6.0]
[1646669365088,14.02,85.69,85.596,6.0]
[1646669365287,116.7,85.688,85.596,6.0]
[1646669365587,116.7,85.686,85.597,5.838]
[1646669365790,116.7,85.684,85.598,6.0]
[1646669365988,162.35385734,85.669,85.599,5.838]
[1646669366191,116.7,85.667,85.599,5.838]
[1646669366389,6.25,85.666,85.599,5.838]
[1646669366790,116.7,85.665,85.599,5.838]
[1646669366989,41.92938424,85.649,85.591,23.7264]
[1646669367192,41.92938424,85.649,85.592,0.25]
[1646669368394,17.523,85.66,85.592,0.25]
[1646669368594,6.25,85.659,85.592,0.25]
[1646669368897,6.0,85.659,85.592,0.25]
[1646669369494,44.22387817,85.658,85.592,0.25]
[1646669370096,44.22387817,85.658,85.6,17.5222]
[1646669370295,14.02,85.67,85.601,0.25]
[1646669370502,6.0,85.667,85.602,5.838]
[1646669370696,28.6396,85.699,85.604,0.41056058]
[1646669371295,42.05035288,85.686,85.611,0.41056058]
[1646669371498,5.837,85.709,85.613,186.76]
[1646669371695,0.25,85.708,85.631,0.47361481]
[1646669371897,6.0,85.708,85.631,0.25]
[1646669372194,6.0,85.708,85.614,12.086]
[1646669372195,0.25,85.707,85.614,12.086]
[1646669372901,0.25,85.707,85.615,0.24336788]
[1646669373095,17.5146,85.7,85.64,17.5101]
[1646669373297,17.5146,85.7,85.641,0.25]
[1646669373898,119.53613526,85.699,85.617,23.6242]
[1646669374100,116.7,85.697,85.618,6.0]
[1646669374296,116.7,85.695,85.618,6.0]
[1646669374496,41.9635941,85.678,85.618,6.0]
[1646669374697,0.25,85.677,85.618,6.0]
[1646669375296,41.9635941,85.678,85.619,0.25]
[1646669375696,5.837,85.688,85.619,0.25]
[1646669375898,0.25,85.687,85.619,0.25]
[1646669376098,0.25,85.687,85.62,17.5172]
[1646669376298,0.25,85.687,85.621,0.25]
[1646669377100,0.25,85.688,85.621,0.25]
[1646669377300,0.25,85.699,85.619,0.25]
[1646669377500,0.25,85.705,85.62,5.837]
[1646669377699,52.31573511,85.71,85.63,17.516]
[1646669377700,0.25,85.709,85.63,17.516]
[1646669377999,0.25,85.709,85.621,6.25]
[1646669378000,158.57232748,85.709,85.631,0.25]
[1646669378200,41.87232748,85.709,85.631,0.25]
[1646669378800,6.0,85.708,85.64,17.5139]
[1646669379001,22.987,85.71,85.641,0.25]
[1646669379002,6.0,85.709,85.641,0.25]
[1646669379499,22.987,85.71,85.641,0.25]
[1646669379699,71.56363526,85.709,85.641,0.25]
[1646669380503,71.56363526,85.709,85.635,0.25]
[1646669380706,71.56363526,85.709,85.636,5.836]
[1646669380902,71.56363526,85.709,85.637,0.25]
[1646669381103,71.56363526,85.709,85.65,17.5117]
[1646669381304,71.56363526,85.709,85.651,0.25]
[1646669382704,6.0,85.708,85.651,0.25]
[1646669382906,42.23490015,85.709,85.651,0.25]
[1646669383206,6.0,85.708,85.66,17.5096]
[1646669383407,6.0,85.708,85.651,0.25]
[1646669383408,5.835,85.729,85.662,70.06]
[1646669383610,5.833,85.749,85.663,76.31]
[1646669383805,5.833,85.75,85.664,0.56039585]
[1646669384005,36.03717914,85.749,85.664,0.56039585]
[1646669384209,41.87017914,85.749,85.664,0.56039585]
[1646669385009,14.02,85.75,85.672,0.56039585]
[1646669385210,5.833,85.762,85.674,0.56039585]
[1646669385411,5.833,85.762,85.674,6.25]
[1646669385609,28.42740177,85.761,85.675,0.56039585]
[1646669385810,5.833,85.76,85.675,6.81039585]
[1646669386010,34.37122187,85.759,85.69,17.5023]
[1646669386210,5.832,85.758,85.691,0.25]
[1646669386613,34.37122187,85.759,85.691,0.25]
[1646669386820,48.1828,85.771,85.691,0.25]
[1646669387011,6.0,85.77,85.692,0.24917297]
[1646669387313,6.0,85.769,85.701,0.46170191]
[1646669387613,23.6957,85.798,85.703,70.06]
[1646669387811,23.6957,85.798,85.705,0.47722793]
[1646669388012,23.6957,85.798,85.705,187.23722793]
[1646669388211,23.6957,85.798,85.711,186.76]
[1646669388413,23.6957,85.798,85.714,0.47722793]
[1646669388612,23.6957,85.798,85.714,6.72722793]
[1646669388811,23.6957,85.798,85.723,186.76]
[1646669389011,45.66510345,85.809,85.724,6.25]
[1646669389213,45.66510345,85.809,85.725,47.6867]
[1646669389418,45.66510345,85.809,85.726,6.25]
[1646669389614,0.25,85.808,85.726,6.25]
[1646669389814,5.829,85.82,85.731,70.06]
[1646669390014,0.91,85.935,85.726,6.25]
[1646669390015,5.829,85.835,85.738,116.7]
[1646669390216,28.42740177,85.841,85.745,70.06]
[1646669390415,28.42740177,85.841,85.748,0.47722793]
[1646669390614,28.42740177,85.841,85.75,0.47722793]
[1646669390819,36.57001936,85.84,85.751,70.06]
[1646669391015,54.05651936,85.84,85.77,17.4851]
[1646669391215,36.57001936,85.84,85.771,0.25]
[1646669391616,28.42740177,85.839,85.771,0.25]
[1646669392020,28.42740177,85.839,85.78,17.4845]
[1646669392216,3.13031016,85.875,85.76,58.278]
[1646669392217,0.25,85.838,85.782,0.47722793]
[1646669392417,6.25,85.855,85.781,0.25]
[1646669392617,0.25,85.855,85.781,0.25]
[1646669392817,28.42740177,85.856,85.781,0.25]
[1646669393016,34.55802664,85.855,85.781,0.25]
[1646669393215,34.55802664,85.855,85.765,0.25]
[1646669393417,34.55802664,85.855,85.79,17.4824]
[1646669393616,34.55802664,85.855,85.791,0.25]
[1646669394019,28.42740177,85.868,85.791,0.25]
[1646669394219,12.075,85.867,85.791,0.25]
[1646669394622,5.825,85.867,85.8,17.4798]
[1646669394821,28.42740177,85.868,85.801,0.25]
[1646669395019,50.77944006,85.867,85.801,0.25]
[1646669395223,44.77944006,85.867,85.801,0.25]
[1646669395622,6.0,85.866,85.801,0.25]
[1646669395920,34.42740177,85.865,85.801,0.25]
[1646669396127,0.25,85.864,85.785,0.25]
[1646669396320,116.95,85.864,85.785,0.25]
[1646669396522,116.7,85.862,85.785,0.25]
[1646669396720,6.0,85.863,85.785,0.25]
[1646669396721,133.52,85.86,85.785,0.25]
[1646669396920,17.4906,85.83,85.75,17.4882]
[1646669397124,116.7,85.828,85.751,6.0]
[1646669397422,116.7,85.819,85.751,6.0]
[1646669397626,116.7,85.817,85.751,6.0]
[1646669397824,154.35247273,85.815,85.729,24.9794]
[1646669398029,116.7,85.813,85.729,24.9794]
[1646669398224,17.4956,85.8,85.73,17.4943]
[1646669398422,47.89999418,85.798,85.73,17.4943]
[1646669398623,6.0,85.797,85.731,0.25]
[1646669398824,116.7,85.789,85.68,16.82]
[1646669399024,116.7,85.789,85.673,87.141]
[1646669399324,116.7,85.787,85.673,87.141]
[1646669399527,36.70544641,85.779,85.7,17.5011]
[1646669399727,122.7,85.778,85.7,17.5011]
[1646669399924,122.7,85.778,85.674,24.3248]
[1646669400130,0.25,85.777,85.674,24.3248]
[1646669400627,17.5009,85.77,85.68,17.5039]
[1646669400829,6.25,85.769,85.68,17.5039]
[1646669401027,5.832,85.768,85.68,17.5039]
[1646669401228,43.43320112,85.766,85.681,6.25]
[1646669401529,6.25,85.765,85.682,186.61]
[1646669401728,6.25,85.765,85.683,0.25]
[1646669401928,6.0,85.765,85.701,186.61]
[1646669402146,6.0,85.789,85.702,0.25]
[1646669402349,0.25,85.788,85.702,0.25]
[1646669402947,5.831,85.787,85.71,17.4965]
[1646669403147,46.77897911,85.785,85.711,0.25]
[1646669403350,6.25,85.784,85.711,0.25]
[1646669403649,6.0,85.784,85.711,0.25]
[1646669403846,46.77897911,85.785,85.711,0.25]
[1646669404248,46.77897911,85.785,85.71,17.4985]
[1646669404450,74.96371422,85.785,85.681,23.5245]
[1646669404647,74.96371422,85.785,85.682,6.0]
[1646669404648,116.7,85.779,85.682,6.0]
[1646669404949,13.99,85.78,85.682,122.7]
[1646669405349,46.77897911,85.785,85.691,186.61]
[1646669405550,46.77897911,85.785,85.704,116.7]
[1646669405748,46.77897911,85.785,85.713,69.91]
[1646669406149,46.77897911,85.785,85.714,6.25]
[1646669406349,46.77897911,85.785,85.73,17.4937]
[1646669406554,46.77897911,85.785,85.731,0.25]
[1646669406751,0.25,85.784,85.714,6.0]
[1646669406950,0.25,85.784,85.701,6.0]
[1646669407149,6.25,85.784,85.693,6.0]
[1646669407351,17.4985,85.78,85.71,17.4987]
[1646669407555,6.0,85.779,85.71,17.4987]
[1646669407953,0.25,85.784,85.71,17.4987]
[1646669408153,6.25,85.784,85.711,0.25]
[1646669408352,17.4985,85.78,85.711,0.25]
[1646669408552,6.0,85.779,85.711,0.25]
[1646669408752,5.831,85.778,85.711,0.25]
[1646669408952,6.25,85.784,85.711,0.25]
[1646669408953,6.0,85.777,85.711,0.25]
[1646669409153,6.0,85.777,85.701,0.25]
[1646669409556,47.90346043,85.769,85.701,0.25]
[1646669409755,6.0,85.768,85.694,0.25]
[1646669409956,47.90346043,85.769,85.694,0.25]
[1646669410159,6.0,85.768,85.694,0.25]
[1646669410759,6.0,85.768,85.701,186.61]
[1646669410958,13.99,85.81,85.702,0.25]
[1646669411160,6.0,85.796,85.704,0.25155201]
[1646669411358,5.83,85.829,85.706,0.29865874]
[1646669411560,5.83,85.829,85.711,186.61]
[1646669411757,5.83,85.835,85.714,0.33510433]
[1646669411957,45.3515313,85.834,85.721,186.61]
[1646669412157,116.7,85.849,85.731,186.61]
[1646669412357,13.99,85.85,85.733,187.05222217]
[1646669412561,5.828,85.849,85.735,191.28597154]
[1646669412762,5.828,85.856,85.738,0.49106208]
[1646669412962,6.0,85.855,85.751,116.7]
[1646669413164,5.827,85.854,85.762,186.61]
[1646669413363,36.40084612,85.855,85.77,17.4839]
[1646669413561,5.825,85.854,85.772,0.49106208]
[1646669413762,6.0,85.853,85.772,0.49106208]
[1646669413965,6.0,85.853,85.771,0.74106208]
[1646669413966,5.825,85.852,85.771,0.74106208]
[1646669414163,5.825,85.852,85.773,69.91]
[1646669414362,100.0,85.857,85.777,69.91]
[1646669414564,5.825,85.866,85.788,116.7]
[1646669414762,11.825,85.877,85.793,69.91]
[1646669414962,11.825,85.877,85.794,6.25]
[1646669415366,44.58957625,85.876,85.794,0.25]
[1646669415563,5.825,85.875,85.8,17.4787]
[1646669415763,44.58957625,85.876,85.801,0.25]
[1646669416264,33.35273511,85.875,85.801,0.25]
[1646669416862,27.35273511,85.875,85.801,186.86]
[1646669417064,27.35273511,85.889,85.812,0.23608049]
[1646669417267,72.2411,85.92,85.813,186.61]
[1646669417268,3.13031016,85.911,85.813,186.61]
[1646669417465,5.824,85.919,85.816,0.38488485]
[1646669417466,6.0,85.91,85.816,0.38488485]
[1646669417666,12.33284129,85.913,85.818,0.38488485]
[1646669417869,12.33284129,85.913,85.819,69.91]
[1646669417870,100.0,85.912,85.819,69.91]
[1646669418068,134.1731,85.91,85.82,23.7235]
[1646669418267,134.1731,85.91,85.818,0.25]
[1646669418268,122.95,85.909,85.821,6.25]
[1646669418466,122.95,85.909,85.818,0.25]
[1646669418467,116.7,85.907,85.818,0.25]
[1646669418667,18.40643184,85.906,85.818,0.25]
[1646669418868,6.33343184,85.905,85.793,6.0]
[1646669419069,12.074,85.904,85.793,6.0]
[1646669419269,12.074,85.904,85.794,69.91]
[1646669419468,12.074,85.904,85.797,116.7]
[1646669419671,17.4738,85.9,85.81,17.4769]
[1646669419969,47.15638917,85.898,85.811,6.0]
[1646669420169,6.0,85.897,85.812,186.61]
[1646669420375,47.15638917,85.898,85.813,75.91]
[1646669420571,17.12031016,85.92,85.822,116.7]
[1646669420772,5.823,85.923,85.81,58.2411]
[1646669420773,12.33316908,85.919,85.833,69.91]
[1646669420972,6.0,85.919,85.834,6.25]
[1646669421171,5.822,85.918,85.834,6.25]
[1646669421373,6.0,85.917,85.834,6.25]
[1646669421571,157.86982856,85.916,85.834,0.25]
[1646669421774,116.7,85.914,85.834,0.25]
[1646669421976,116.7,85.912,85.834,0.25]
[1646669422176,11.822,85.911,85.802,116.95]
[1646669422374,5.823,85.914,85.804,116.7]
[1646669422573,0.25,85.915,85.813,69.91]
[1646669422574,6.25,85.913,85.813,69.91]
[1646669422777,17.4725,85.91,85.83,17.4735]
[1646669422978,6.0,85.909,85.831,6.25]
[1646669423574,6.0,85.913,85.831,0.25]
[1646669423773,41.92504776,85.899,85.82,17.4756]
[1646669424174,6.0,85.898,85.813,118.6296]
[1646669424374,6.0,85.898,85.814,6.0]
[1646669425974,6.0,85.898,85.815,70.16]
[1646669426175,6.0,85.898,85.83,17.4738]
[1646669426476,6.0,85.898,85.831,0.25]
[1646669427276,6.0,85.898,85.84,17.4709]
[1646669427478,1.56494613,85.916,85.841,0.25]
[1646669427681,1.56494613,85.92,85.841,0.25]
[1646669427882,6.0,85.919,85.841,0.25]
[1646669428078,1.56494613,85.925,85.841,0.25]
[1646669428304,1.56494613,85.929,85.841,0.25]
[1646669428501,42.77076284,85.924,85.835,0.25]
[1646669428903,42.77076284,85.924,85.833,76.16]
[1646669429103,42.77076284,85.924,85.85,17.4688]
[1646669429302,42.77076284,85.924,85.851,0.25]
[1646669429505,6.0,85.923,85.851,6.25]
[1646669429705,6.0,85.923,85.851,0.25]
[1646669430810,17.4698,85.92,85.851,0.25]
[1646669431009,5.821,85.928,85.86,17.4677]
[1646669431209,100.0,85.943,85.861,76.16]
[1646669431410,1.56494613,85.95,85.864,0.23513136]
[1646669431611,13.99,85.98,85.864,0.23513136]
[1646669431612,1.56494613,85.958,85.864,30.2148]
[1646669431806,17.4636,85.95,85.864,30.2148]
[1646669432106,1.56494613,85.953,85.864,30.2148]
[1646669432307,11.82,85.952,85.864,30.2148]
[1646669432508,1.56494613,85.949,85.864,30.2148]
[1646669432707,12.07,85.948,85.864,30.2148]
[1646669433107,17.4666,85.94,85.87,17.4662]
[1646669433311,48.55138176,85.938,85.871,6.0]
[1646669433512,6.0,85.937,85.871,6.0]
[1646669433712,6.0,85.937,85.865,6.0]
[1646669434310,48.55138176,85.938,85.866,70.16]
[1646669434511,1.56494613,85.953,85.88,17.4641]
[1646669434715,5.819,85.952,85.881,0.25]
[1646669434915,5.819,85.966,85.882,186.41]
[1646669435111,1.56494613,85.969,85.884,186.41]
[1646669435310,1.56494613,85.972,85.885,0.25]
[1646669435511,40.34421568,85.971,85.886,69.91]
[1646669435712,40.34421568,85.971,85.889,116.5]
[1646669435915,1.56494613,85.97,85.91,17.4559]
[1646669436112,1.56494613,85.973,85.911,0.25]
[1646669436317,1.56494613,85.975,85.911,70.16]
[1646669436513,1.56494613,85.978,85.911,70.16]
[1646669436917,1.56494613,85.982,85.911,70.16]
[1646669437115,1.56494613,85.982,85.913,69.91]
[1646669437323,1.56494613,85.981,85.914,0.25]
[1646669437616,1.56494613,85.982,85.921,69.91]
[1646669437816,1.56494613,85.982,85.922,0.25]
[1646669438420,1.56494613,85.983,85.922,0.25]
[1646669438617,1.56494613,85.983,85.93,17.4532]
[1646669438822,1.56494613,85.983,85.931,0.25]
[1646669439419,38.46576404,85.986,85.931,0.25]
[1646669439618,6.0,85.985,85.931,0.25]
[1646669439820,6.0,85.985,85.922,0.25]
[1646669440020,6.0,85.985,85.94,17.4517]
[1646669440221,6.0,85.986,85.941,0.25]
[1646669440418,1.56494613,85.982,85.941,0.25]
[1646669440618,1.56494613,85.981,85.941,0.25]
[1646669441619,1.56494613,85.985,85.931,0.25]
[1646669441819,37.39426669,85.987,85.931,0.25]
[1646669441820,1.56494613,85.981,85.931,0.25]
[1646669442020,1.56494613,85.982,85.914,0.25]
[1646669442222,1.56494613,85.979,85.914,122.75]
[1646669442421,1.56494613,85.98,85.921,116.5]
[1646669442619,6.0,85.984,85.927,116.5]
[1646669442820,6.0,85.994,85.932,69.91]
[1646669443023,6.0,85.994,85.933,6.25]
[1646669443222,17.4551,85.99,85.933,6.25]
[1646669443423,1.56494613,85.987,85.933,6.25]
[1646669443625,40.4642655,85.986,85.933,0.25]
[1646669443824,34.4642655,85.986,85.933,0.25]
[1646669444022,34.4642655,85.986,85.916,69.91]
[1646669444224,34.4642655,85.986,85.92,128.0798]
[1646669444423,34.4642655,85.986,85.921,0.25]
[1646669444724,34.4642655,85.986,85.93,17.4534]
[1646669444923,36.02921163,85.986,85.93,17.4534]
[1646669445523,1.56494613,85.985,85.93,17.4534]
[1646669446123,1.56494613,85.984,85.93,17.4534]
[1646669446326,1.56494613,85.981,85.93,17.4534]
[1646669446722,1.56494613,85.982,85.931,0.25]
[1646669447324,1.56494613,85.982,85.94,17.4515]
[1646669447528,1.56494613,85.982,85.943,69.91]
[1646669447724,1.56494613,85.989,85.944,0.25]
[1646669447929,1.56494613,85.992,85.944,0.25]
[1646669448331,1.56494613,86.015,85.951,69.91]
[1646669448531,1.56494613,86.015,85.944,0.25]
[1646669448532,1.56494613,86.021,85.953,69.91]
[1646669448729,1.56494613,86.023,85.955,69.91]
[1646669448932,1.56494613,86.035,85.962,116.5]
[1646669449130,1.56494613,86.045,85.968,116.5]
[1646669449333,100.0,86.048,85.972,116.5]
[1646669449527,46.92793873,86.044,85.981,69.91]
[1646669449729,46.92793873,86.044,85.982,6.25]
[1646669449927,46.92793873,86.044,85.983,69.91]
[1646669450128,46.92793873,86.044,85.984,6.25]
[1646669450327,5.813,86.056,85.984,6.25]
[1646669450528,1.56494613,86.059,85.984,6.25]
[1646669450730,1.56494613,86.062,85.984,6.25]
[1646669450929,1.56494613,86.064,85.99,17.4385]
[1646669451128,1.56494613,86.069,85.991,76.16]
[1646669451328,42.43375085,86.063,85.993,69.91]
[1646669451532,1.56494613,86.073,85.995,69.91]
[1646669451727,1.56494613,86.076,86.002,116.5]
[1646669451929,1.56494613,86.076,86.02,17.4303]
[1646669452128,1.56494613,86.08,86.004,24.6083]
[1646669452530,36.80805206,86.079,86.004,24.6083]
[1646669452928,36.80805206,86.079,86.005,69.91]
[1646669453131,6.0,86.078,86.005,116.5]
[1646669453528,6.0,86.078,86.004,24.6083]
[1646669454132,6.0,86.078,86.011,69.91]
[1646669454330,6.0,86.078,86.01,17.4343]
[1646669454547,6.0,86.078,86.005,116.5]
[1646669454731,6.0,86.078,86.004,24.6083]
[1646669455530,6.0,86.078,86.005,0.25]
[1646669456331,6.0,86.078,86.004,24.6083]
[1646669456737,1.56494613,86.076,86.004,24.6083]
[1646669456933,1.56494613,86.072,85.971,26.6586353]
[1646669457135,118.06494613,86.07,85.972,47.0001]
[1646669457334,1.56494613,86.068,85.972,163.5001]
[1646669457534,6.0,86.067,85.977,69.91]
[1646669457733,1.56494613,86.071,85.977,69.91]
[1646669457933,5.812,86.076,85.972,47.0001]
[1646669457934,1.56494613,86.075,85.979,69.91]
[1646669458134,1.56494613,86.073,85.979,69.91]
[1646669458334,1.56494613,86.068,85.991,186.41]
[1646669458834,1.56494613,86.073,85.993,69.91]
[1646669459035,1.56494613,86.076,85.993,69.91]
[1646669459238,1.56494613,86.075,86.01,17.434]
[1646669459437,1.56494613,86.075,86.011,0.25]
[1646669459635,1.56494613,86.076,86.011,0.25]
[1646669460038,1.56494613,86.081,86.011,0.25]
[1646669460237,47.1413,86.099,85.995,23.7248]
[1646669460238,38.37299819,86.079,85.996,6.06]
[1646669460437,17.4401,86.07,85.996,5.81]
[1646669460737,1.56494613,86.068,85.995,23.7248]
[1646669461137,1.56494613,86.066,85.995,23.6943961]
[1646669461337,1.56494613,86.063,85.995,23.6943961]
[1646669462058,1.56494613,86.062,85.976,24.9772]
[1646669462258,1.56494613,86.062,85.973,5.812]
[1646669462458,116.5,86.06,85.974,0.25]
[1646669462659,17.447,86.04,85.973,0.25]
[1646669462859,34.50360817,86.039,85.973,0.25]
[1646669463658,34.50360817,86.039,85.972,23.2753]
[1646669464261,1.56494613,86.038,85.973,5.813]
[1646669464661,1.56494613,86.038,85.972,23.2753]
[1646669465062,1.56494613,86.037,85.972,23.2753]
[1646669465463,1.56494613,86.034,85.972,23.2753]
[1646669465863,1.56494613,86.033,85.972,23.2753]
[1646669466065,1.56494613,86.033,85.973,5.813]
[1646669466262,1.56494613,86.033,85.944,5.813]
[1646669466463,1.56494613,86.029,85.941,53.3796]
[1646669466762,1.56494613,86.025,85.941,53.3796]
[1646669466967,1.56494613,86.022,85.941,53.3796]
[1646669467162,1.56494613,86.018,85.941,47.5656]
[1646669467366,1.56494613,86.016,85.941,47.5656]
[1646669467568,1.56494613,86.016,85.942,31.37893442]
[1646669467766,1.56494613,86.016,85.942,25.56393442]
[1646669468165,1.56494613,86.019,85.943,0.25]
[1646669468366,1.56494613,86.017,85.944,5.815]
[1646669468566,1.56494613,86.017,85.945,0.25]
[1646669468767,1.56494613,86.017,85.946,5.815]
[1646669468966,1.56494613,86.017,85.947,0.25]
[1646669469167,1.56494613,86.017,85.948,5.815]
[1646669469368,1.56494613,86.017,85.949,0.25]
[1646669469571,1.56494613,86.015,85.941,47.5656]
[1646669469771,41.90905895,86.013,85.941,47.5656]
[1646669469969,43.47400508,86.013,85.942,5.815]
[1646669470169,1.56494613,86.007,85.942,5.815]
[1646669470370,1.56494613,86.004,85.911,5.815]
[1646669470570,1.56494613,85.997,85.895,51.9204]
[1646669470772,6.0,85.996,85.895,51.9204]
[1646669470970,1.56494613,85.992,85.895,51.9204]
[1646669471172,1.56494613,85.991,85.895,51.9204]
[1646669471473,16.75,86.0,85.895,51.9204]
[1646669471474,1.56494613,85.993,85.903,69.91]
[1646669471670,133.25,86.01,85.903,69.91]
[1646669471671,1.56494613,85.998,85.903,69.91]
[1646669471872,6.0,85.997,85.903,69.91]
[1646669472275,6.0,85.997,85.903,89.23006176]
[1646669472474,7.56494613,85.997,85.922,116.5]
[1646669472674,6.0,85.997,85.937,69.91]
[1646669472874,6.0,85.998,85.938,0.25]
[1646669473073,6.0,86.003,85.938,0.25]
[1646669473273,24.8684,86.028,85.938,0.25]
[1646669473274,6.0,86.006,85.938,0.25]
[1646669473477,6.0,86.008,85.938,0.25]
[1646669473675,6.0,86.008,85.941,69.91]
[1646669473875,6.0,86.008,85.942,0.25]
[1646669474075,7.56494613,86.008,85.942,0.25]
[1646669474474,1.56494613,86.006,85.942,0.25]
[1646669474679,6.0,86.005,85.942,0.25]
[1646669474874,6.0,86.005,85.95,17.4481]
[1646669475076,6.0,86.005,85.951,0.25]
[1646669475278,6.0,86.006,85.951,0.25]
[1646669475475,7.56494613,86.007,85.951,0.25]
[1646669475675,6.0,86.007,85.951,0.25]
[1646669475876,1.56494613,86.008,85.951,0.25]
[1646669476083,1.56494613,86.014,85.961,0.22333619]
[1646669476285,1.56494613,86.014,85.961,0.47333619]
[1646669476479,1.56494613,86.02,85.961,0.47333619]
[1646669476680,1.56494613,86.019,85.961,0.25]
[1646669476881,1.56494613,86.018,85.961,0.25]
[1646669477079,39.43052105,86.017,85.961,0.25]
[1646669477483,40.99546718,86.017,85.961,0.25]
[1646669477679,1.56494613,86.016,85.961,0.25]
[1646669477879,1.56494613,86.017,85.961,0.25]
[1646669478079,1.56494613,86.017,85.953,0.25]
[1646669478481,1.56494613,86.017,85.943,69.91]
[1646669478681,41.44051097,86.007,85.943,69.91]
[1646669478880,1.56494613,86.004,85.943,69.91]
[1646669479281,1.56494613,86.006,85.943,69.91]
[1646669479482,1.56494613,86.005,85.941,24.5512]
[1646669479686,1.56494613,86.003,85.941,24.5512]
[1646669479886,1.56494613,86.0,85.9,70.32504082]
[1646669480084,41.44051097,86.007,85.924,22.6573]
[1646669480085,1.56494613,85.995,85.924,22.6573]
[1646669480285,41.44051097,86.007,85.901,24.3905]
[1646669480286,17.4601,85.97,85.901,24.3905]
[1646669480485,17.4601,85.97,85.846,17.8398]
[1646669480486,151.31848278,85.969,85.881,35.80855016]
[1646669480689,157.56848278,85.969,85.881,35.80855016]
[1646669480885,1.56494613,85.967,85.851,112.2]
[1646669481089,1.56494613,85.967,85.852,48.0448]
[1646669481090,116.5,85.965,85.852,48.0448]
[1646669481288,1.56494613,85.961,85.857,21.08970843]
[1646669481488,116.5,85.959,85.857,21.08970843]
[1646669481691,17.4665,85.95,85.87,17.4647]
[1646669482690,17.4665,85.95,85.871,0.25]
[1646669482891,17.4665,85.95,85.88,17.4623]
[1646669483091,17.4665,85.95,85.881,0.25]
[1646669483690,17.4665,85.95,85.88,17.4623]
[1646669483890,0.25,85.949,85.864,22.7085]
[1646669484091,40.9560852,85.939,85.864,22.7085]
[1646669484690,40.9560852,85.939,85.865,6.0]
[1646669485096,40.9560852,85.939,85.866,0.25]
[1646669485892,5.82,85.957,85.866,0.25]
[1646669486092,6.0,85.956,85.871,186.41]
[1646669486291,6.0,85.956,85.865,6.0]
[1646669486292,6.0,85.956,85.882,186.41]
[1646669486491,6.0,85.956,85.884,0.24001973]
[1646669486697,6.0,85.959,85.884,0.24001973]
[1646669486992,6.0,85.959,85.883,0.25]
[1646669486993,17.4631,85.95,85.883,0.25]
[1646669487597,5.819,85.957,85.881,0.25]
[1646669487794,45.39450926,85.958,85.866,0.25]
[1646669487993,45.39450926,85.958,85.881,116.5]
[1646669488194,45.39450926,85.958,85.882,70.16]
[1646669488416,5.819,85.957,85.882,70.16]
[1646669488619,6.0,85.956,85.882,70.16]
[1646669488816,6.0,85.957,85.89,17.4612]
[1646669489020,6.0,85.957,85.891,0.25]
[1646669489316,116.5,85.956,85.864,22.7085]
[1646669489516,116.5,85.954,85.865,6.0]